Cogmind - Beta 15 @@@ ROGUE MODE // 2025.07.01 @ 15:25:17 Player: Rockstar Result: Destroyed by B8-QW4(R) with Subdweller Machine Gun Performance ------------- Evolutions (0) 0 Regions Visited (2) 400 Robots Destroyed (8) 40 Value Destroyed (320) 320 Prototype IDs (0) 0 Alien Tech Used (0) 0 Bonus (0) 0 TOTAL SCORE: 760 Bonus ------- None Cogmind --------- Core Integrity 0/250 Matter 289/300 Energy 200/200 System Corruption 0% Temperature Cool (0) Movement Rolling (110) Location -10/Subcaves Parts ------- > --- POWER (1) -------- Subdweller Power Source > --- PROPULSION (2) --- Subdweller Monowheel > --- UTILITY (2) ------ Disposable Heat Sink Subdweller Optics > --- WEAPON (2) ------- Heavy Assault Rifle Subdweller Machine Gun > --- INVENTORY (5) ---- Subdweller Power Source Heavy Assault Rifle Peak State ------------ > --- POWER ------------ Light Nuclear Core > --- PROPULSION ------- Light Treads Light Treads > --- UTILITY ---------- Small Storage Unit Visual Processing Unit > --- WEAPON ----------- Heavy Assault Rifle Heavy Assault Rifle > --- INVENTORY -------- Ion Engine Light Ion Engine Light Ion Engine Light Assault Rifle Heavy Assault Rifle Heavy Assault Rifle Mini Grenade Launcher Mini Grenade Launcher [Rating: 13] Favorites ----------- Power Subdweller Power Source Engine Subdweller Power Source Power Core Light Nuclear Core Propulsion Light Treads Treads Light Treads Leg Aluminum Leg Wheel Subdweller Monowheel Utility Disposable Heat Sink Device Disposable Heat Sink Storage Small Storage Unit Processor Visual Processing Unit Weapon Heavy Assault Rifle Energy Gun Medium Laser Ballistic Gun Heavy Assault Rifle Launcher Mini Grenade Launcher Build | -11 -10 -10 ------- Run | Yrd Mat Sub Slots Evolved . | . . . Power . | . . . Propulsion . | . . . Utility . | . . . Weapon . | . . . Parts Attached 22 | 7 5 10 Power 5 | 2 1 2 Engine 4 | 2 . 2 Core 1 | . 1 . Reactor . | . . . Propulsion 4 | 2 . 2 Treads 2 | 2 . . Leg 1 | . . 1 Wheel 1 | . . 1 Hover . | . . . Flight . | . . . Utility 5 | 1 2 2 Device 3 | . 1 2 Storage 1 | 1 . . Processor 1 | . 1 . Hackware . | . . . Protection . | . . . Artifact . | . . . Weapon 8 | 2 2 4 Energy Gun 1 | 1 . . Energy Cannon . | . . . Ballistic Gun 6 | 1 2 3 Ballistic Cannon . | . . . Launcher 1 | . . 1 Special Weapon . | . . . Impact Weapon . | . . . Slashing Weapon . | . . . Piercing Weapon . | . . . Special Melee Weapon . | . . . Unidentified Prototypes . | . . . Parts Lost 8 | . . 8 Power 2 | . . 2 Propulsion 3 | . . 3 Utility 1 | . . 1 Weapon 2 | . . 2 Highest Loss Streak 2 | . . 2 To Critical Strikes . | . . . Average Backups 2 | . 4 2 Power . | . 1 . Propulsion . | . . . Utility . | . . . Weapon 1 | . 2 1 Tool/Special . | . . . Unused Backups 2 | . 2 . Power 1 | . 1 . Propulsion . | . . . Utility . | . . . Weapon 1 | . 1 . Tool/Special . | . . . Average Slot Usage (%) 83 | . 97 78 Engine 7 | . 10 6 Core 3 | . 3 3 Treads 9 | . 28 3 Leg 3 | . . 3 Wheel 4 | . . 6 Device 17 | . 1 22 Storage 2 | . 12 . Processor 5 | . 11 3 Energy Gun 1 | . 5 . Ballistic Gun 24 | . 22 25 Launcher 1 | . . 2 Peak Build Rating 13 | 6 13 12 Average Rating 10 | 5 9 10 On Entrance 6 | . 6 12 Naked Turns . | . . . Heaviest Build 16 | 13 16 15 Greatest Support 40 | 40 40 40 Greatest Overweight (x) 4 | 2 . 4 Average Overweight (x) . | . . . Largest Inventory Capacity 8 | 8 8 5 Average Capacity 5 | 7 7 5 Most Carried 8 | 1 8 4 Average Carried 2 | . 4 2 Final Capacity 8 | 8 5 5 Final Carried 4 | 1 4 2 Class Distribution -------------------- 50% | Scavenger-Mutant 49% | Mutant Dominant Class ---------------- Mutant | -10/Materials Scavenger-Mutant | -10/Subcaves Resources | -11 -10 -10 ----------- Run | Yrd Mat Sub Matter Collected 699 | 255 57 387 Remotely . | . . . Salvage Created 290 | . . 290 Parts 19 | . . 19 Haulers Intercepted . | . . . Recyclers Shooed . | . . . Parts Field Recycled . | . . . Retrieved Matter . | . . . Parts Self-Destructed 3 | . . 3 Prevented . | . . . Kills | -11 -10 -10 ------- Run | Yrd Mat Sub Combat Hostiles Destroyed 8 | . . 8 Guns 5 | . . 5 AOE 3 | . . 3 Classes Destroyed 1 | . . 1 Subdweller 8 | . . 8 Best Kill Streak 2 | . . 2 Combat Bots Only 2 | . . 2 Max Kills in Single Turn 1 | . . 1 Gunslinging . | . . . Exploded 1 | . . 1 Melee . | . . . Uniques/NPCs Destroyed . | . . . Combat | -11 -10 -10 -------- Run | Yrd Mat Sub Hostile Shots Fired 79 | . . 79 Missed 25 | . . 25 Hits 54 | . . 54 Projectile 54 | . . 54 Critical Strikes 2 | . . 2 Damage Taken 1193 | . . 1193 Core 264 | . . 264 Absorbed by Shields . | . . . Core Remaining (%) 100 | 100 . . Volleys Fired 51 | . 2 49 Largest 2 | . 2 2 Hottest 70 | . 70 53 Shots Fired 97 | . 4 93 Gun 90 | . 4 86 Cannon . | . . . Launcher 7 | . . 7 Special . | . . . Kinetic 88 | . 2 86 Thermal 2 | . 2 . Explosive 7 | . . 7 Electromagnetic . | . . . Robot Hit Streak 14 | . 1 14 Robot Miss Streak 2 | . 2 2 Penetration Max . | . . . Secondary Targets 1 | . . 1 Max Gunslinging Chain 1 | . . 1 Shots Hit Robots 56 | . 2 54 Core Hits 15 | . . 15 Critical Kills . | . . . Critical Parts Destroyed . | . . . Critical Strikes . | . . . Melee Attacks . | . . . Impact . | . . . Slashing . | . . . Piercing . | . . . Sneak Attacks . | . . . Combat Hostiles . | . . . Follow-up Attacks . | . . . Damage Inflicted 1146 | . 21 1125 Guns 841 | . 21 820 Cannons . | . . . Explosions 305 | . . 305 Melee . | . . . Ramming . | . . . Kinetic 829 | . 9 820 Thermal 12 | . 12 . Explosive 305 | . . 305 Electromagnetic . | . . . Impact . | . . . Slashing . | . . . Piercing . | . . . Highest Corruption . | . . . Average Corruption . | . . . Corruption Purged . | . . . Corruption Blocked . | . . . Overload Shots . | . . . Overflow Damage . | . . . Projectiles . | . . . Explosions . | . . . Melee . | . . . Knockbacks . | . . . Impact . | . . . Kinetic . | . . . Secondary . | . . . Self-Inflicted Damage 42 | . . 42 Shots 2 | . . 2 Rammed . | . . . Targets Rammed . | . . . Kicked . | . . . Crushed . | . . . Highest Temperature 60 | . 60 . Average Temperature 30 | . 30 . Received Heat Transfer 165 | . . 165 Siege Activations . | . . . Martial Activations . | . . . Shielding Activations . | . . . Robots Disrupted . | . . . Combat Hostiles . | . . . Robots Corrupted . | . . . Combat Hostiles . | . . . Parts Fried . | . . . Impact Corruptions . | . . . Robots Melted . | . . . Combat Hostiles . | . . . Parts Melted 2 | . . 2 Heat Transferred 37 | . 37 . Parts Sabotaged . | . . . Parts Stolen . | . . . Parts Stripped . | . . . Power Chain Reactions . | . . . Alert | -11 -10 -10 ------- Run | Yrd Mat Sub Maximum Alert Level . | . . . Low Security (%) 100 | 100 100 . Level 1 . | . . . Level 2 . | . . . Level 3 . | . . . Level 4 . | . . . Level 5 . | . . . High Security . | . . . Max Security . | . . . Peak Influence 4 | . 4 . Initial . | . . . Average . | . . . Influence Increases 4 | . 4 . Successful Hack 4 | . 4 . Influence Decreases 4 | . 4 . Time Decay 4 | . 4 . Squads Dispatched 1 | . 1 . Investigation . | . . . Extermination . | . . . Reinforcement 1 | . 1 . Assault . | . . . Garrison . | . . . Intercept . | . . . Searches Triggered . | . . . Construction Impeded . | . . . Haulers Reinforced . | . . . Active Scanning Responses . | . . . Cargo Convoy Interrupts . | . . . Stealth | -11 -10 -10 --------- Run | Yrd Mat Sub Distress Signals 2 | . 2 . Communications Jammed . | . . . Distress Signals . | . . . Times Spotted 10 | . 1 9 Peak Tracking Total 3 | . 1 3 Tactical Retreats . | . . . Traps | -11 -10 -10 ------- Run | Yrd Mat Sub Traps Triggered . | . . . Indirectly . | . . . Trap Hack Attempts . | . . . Triggered . | . . . Disarmed . | . . . Reprogrammed . | . . . Reused . | . . . Traps Extracted . | . . . Installed . | . . . Triggered . | . . . Machines | -11 -10 -10 ---------- Run | Yrd Mat Sub Machines Disabled . | . . . Max in Single Turn . | . . . Machines Repaired . | . . . Machines Dismantled . | . . . Machines Sabotaged . | . . . Overloaded Fab Kills . | . . . Hacking | -11 -10 -10 --------- Run | Yrd Mat Sub Machines Accessed 1 | . 1 . Terminals 1 | . 1 . Fabricators . | . . . Repair Stations . | . . . Recycling Units . | . . . Scanalyzers . | . . . Garrison Access . | . . . Total Hacks 2 | . 2 . Successful 1 | . 1 . Failed 1 | . 1 . Catastrophic . | . . . Database Lockouts . | . . . Manual . | . . . Terminals 2 | . 2 . Fabricators . | . . . Repair Stations . | . . . Recycling Units . | . . . Scanalyzers . | . . . Garrison Access . | . . . Terminal Hacks 1 | . 1 . Locate Traps 1 | . 1 . Fabricator Hacks . | . . . Repair Station Hacks . | . . . Recycling Unit Hacks . | . . . Scanalyzer . | . . . Garrison Access Hacks . | . . . Unauthorized Hacks . | . . . Terminals . | . . . Fabricators . | . . . Repair Stations . | . . . Recycling Units . | . . . Scanalyzers . | . . . Garrison Access . | . . . Data Cores Recovered . | . . . Used . | . . . Hacking Detections 1 | . 1 . Full Trace Events . | . . . Feedback Events . | . . . Feedback Blocked . | . . . Robot Schematics Acquired . | . . . Robots Built . | . . . Authchips . | . . . Time . | . . . Total Robot Build Rating . | . . . Part Schematics Acquired . | . . . Parts Built . | . . . Authchips . | . . . Time . | . . . Total Part Build Rating . | . . . Parts Repaired . | . . . Time . | . . . Parts Recycled . | . . . Recycled Matter . | . . . Retrieved Matter . | . . . Retrieved Components . | . . . Parts Scanalyzed . | . . . Part Schematics Acquired . | . . . Parts Damaged . | . . . Bothacking | -11 -10 -10 ------------ Run | Yrd Mat Sub Used RIF Installer . | . . . Robots Hacked . | . . . Non-combat . | . . . Combat . | . . . Robot Hacks Applied . | . . . Relay Couplers Released . | . . . Fabnet Peak Effective % . | . . . Robots Rewired . | . . . Allies Hacked . | . . . Hacks Repelled . | . . . Allies | -11 -10 -10 -------- Run | Yrd Mat Sub Total Allies . | . . . Largest Group . | . . . Highest-Rated Group . | . . . Highest-Rated Ally . | . . . Total Orders . | . . . Ally Attacks . | . . . Total Damage . | . . . Kills . | . . . Allies Corrupted . | . . . Allies Melted . | . . . Intel | -11 -10 -10 ------- Run | Yrd Mat Sub Active Infowar (turns) 1180 | . 232 948 Optics 1180 | . 232 948 Sensors 160 | . 35 125 Robot Analysis Total . | . . . Derelict Logs Recovered 1 | . . 1 Drone Launches . | . . . Drone Recoveries . | . . . Exploration | -11 -10 -10 ------------- Run | Yrd Mat Sub Turns Passed 1337 | 108 281 948 Spaces Moved 866 | 60 159 647 Core 40 | 11 . 29 Treads 279 | 49 159 71 Legs 190 | . . 190 Wheels 357 | . . 357 Hover . | . . . Flight . | . . . Fastest Speed 50 | 50 160 100 Average Speed 131 | 154 160 121 Slowest Speed 250 | 160 160 250 Overloaded Moves . | . . . Propulsion Burnouts . | . . . Robots Hopped . | . . . Potential Cave-ins . | . . . Cave-ins Triggered . | . . . Exploration Rate (%) 24 | 4 37 31 Regions Visited 2 Branch Regions 1 Pre-discovered Areas 2 | . . 2 Known Exits Taken . | . . . Unknown Exits Taken 2 | 1 1 . Scrap Searched 1 | . . 1 Spaces Dug . | . . . Terrain Destroyed 38 | . . 38 Melee . | . . . Projectile . | . . . AOE 38 | . . 38 Terrain Rammed . | . . . Walls Destroyed . | . . . Machines Disabled . | . . . Actions | -11 -10 -10 --------- Run | Yrd Mat Sub Total 966 | 72 184 710 Wait 9 | 6 3 . Move 864 | 59 158 647 Hop . | . . . Pick Up 9 | . 8 1 Fast Attach 11 | 6 2 3 Attach 5 | . 1 4 Detach 1 | . 1 . Swap 8 | 1 2 5 Drop 8 | . 7 1 Fire 51 | . 2 49 Melee . | . . . Ram . | . . . Kick . | . . . Crush . | . . . Escape Stasis . | . . . Rewire . | . . . Trap . | . . . Miscellaneous . | . . . Route ------- -11/Scrapyard -10/Materials (discovered 2 exits: [*Mat] / [*Sub]) -10/Subcaves History --------- Turn | Location | Event 37 | -11/Scrapyard | Discovered new exit (range 16) 109 | -11/Scrapyard | Entered Materials 110 | -10/Materials | Met a group of wandering Federalists 252 | -10/Materials | Discovered new exit (range 18) 334 | -10/Materials | Build established: Mutant 382 | -10/Materials | Discovered new exit (range 7) 390 | -10/Materials | Entered Subcaves 391 | -10/Subcaves | Continued accompanying wandering Federalists (3) 434 | -10/Subcaves | Lost 3 allies 530 | -10/Subcaves | A swath of the cavern ceiling suddenly collapsed 618 | -10/Subcaves | Core integrity fell below 50% 807 | -10/Subcaves | Learned location of Storage (-7) 895 | -10/Subcaves | Core integrity fell below 20% 985 | -10/Subcaves | A swath of the cavern ceiling suddenly collapsed 1187 | -10/Subcaves | Build established: Scavenger-Mutant 1283 | -10/Subcaves | Learned location of Zion (-7) 1283 | -10/Subcaves | Met a Zionite searching for "candidates" 1333 | -10/Subcaves | Disturbed a concealed Subdweller 1338 | -10/Subcaves | Destroyed by B8-QW4(R) with Subdweller Machine Gun Last Messages --------------- S5-DST(R) destroyed. Acquired Sub. Power Source. Acquired Sub. Monowheel. Acquired 36 matter. Acquired 24 matter. Acquired 5 matter. A swath of the cavern ceiling suddenly collapses. Acquired 7 matter. Acquired 11 matter. 5H-SYS(z): "She is not going to be happy we haven't found any suitable candidates yet." 5H-SYS(z): "Hey you! It's really dangerous down here, I feel that you could die at any moment. For your health and safety might I suggest a trip to Zion?" World map updated: -7/Zion. Searching scrap... Found Piercing Trap. Found 51 Matter. B8-QW4(R) angrily emerges from the Twisted Machinery. Acquired 51 matter. Map ----- +----------------------------------------------------+ | | | | | | | | | | | | | | | | | | | | | | | ?????????????????????????????????????????????????? | | ?????????????????????????????????????????????????? | | ?????????????????????????????????????????????????? | | ?????????????????????????????????????????????????? | | ?????????????????????????????????????????????????? | | ?????????????????????????????????????????????????? | | ?????????????????????????????????????????????????? | | ?????????????????????????????????????????????????? | | ?????????????????????????????????????????????????? | | ?????????????????????????????????????????????????? | | ????????????????????????##?###???????????????????? | | ????????????????????????? #$ #?#####?????????????? | | ????????????????????????? &$#?# #?????????????? | | ????????????????????????##R<#??# #?????????????? | | ??????????????????????###@ ###?# ####??????##### | | ?????????????????###### ##&# ### ##????## | | ????????????### ## " < ##??## | | ????????????# #??# # | | ????????????## #??## # | | ?????????????## ######## ### #?### # | | ??????????????##?????????### ## ### ##?# | | ???????????????????????????# # #??#??# | | ???????????????????????????# ## ##????## | | ???????????????????????????# ## ##???# | | ???????????????????????????### ##??# | | ?????????????????????????????# ##?## | | ?????????????????????????????## ##?#### | | ??????????????????????????????## ###### # | | ???????????????????????????????#### ## # | | ?????????????????????????????????## # | | ????????????????????????????????## # | | ???????????????????????????????## ## # | | ????????????????????????# ### #### | | ????????????????????????# ##?## | | ????????????????????????# ### ##??# | | ????????????????????????# #??# ##??# #" | | ????????????????????????# ???# #?# ##" | | ????????????????????????# ????# ## ### | | ????????????????????????# ????# #### #?# | +----------------------------------------------------+ Best States ------------- Heat Dissipation 25 Coolant Potential 50 Energy Generation 15 Energy Capacity 250 Matter Stores 300 Matter Capacity 300 Sight Range 21 Robot Scan Range 14 Terrain Scan Density 10 Evasion (%) 55 Recoil Reduction 2 Item Schematics ----------------- None Robot Schematics ------------------ None Fabricated ------------ Nothing Repaired ---------- Nothing Alien Tech Used ----------------- None Achievements -------------- None Challenges ------------ None Game ------ Seed DirectedAlertScythe Manual? 0 Play Time 00:13:27 Cumulative 15.6 hours Start 2025.07.01 @ 15:12:46 End 2025.07.01 @ 15:25:17 Sessions 1 Manual Loads 0 Difficulty Rogue Special Mode None Game No. 7 Rogue 4 Adventurer 1 Explorer 2 Win Type - Total 0 Types 0/0/0/0/0/0/0/0/0/0 Lore% 14 Gallery% 16 Achievement% 14 Wizard Run 0 Options --------- Layout 0 ASCII 0 Keyboard 0 Movement Mouse Keybinds 0 Fullscreen 2 Font 24/Smallcaps Map View 76x50 Zoom Use 0% Tactical HUD 0 Map Filters NONE Filters NONE Steam 1 RUN: 05c9dae6-092e-4d1d-b581-8c6a72ace31d